[Event "Early Titled Tuesday Blitz | February 8 2022"]
[White "Jary, Sergey"]
[Black "Oro, Luis"]
[WhiteFideId "14110350"]
[BlackFideId "104094"]
[WhiteElo "2260"]
[BlackElo "2254"]
[Result "0-1"]
[Round "06"]
[TimeControl "180+1"]
[Date "2022.02.08"]
[WhiteClock "0:02:06"]
[BlackClock "0:01:29"]

1. Nf3 {[%clk 0:03:00]}  Nf6 {[%clk 0:02:58]} 2. g3 {[%clk 0:03:00]}  g6 {[%clk 0:02:59]} 3. Bg2 {[%clk 0:03:00]}  Bg7 {[%clk 0:03:00]} 4. d4 {[%clk 0:03:01]}  d6 {[%clk 0:03:00]} 5. O-O {[%clk 0:03:00]}  O-O {[%clk 0:03:00]} 6. a4 {[%clk 0:02:59]}  Nbd7 {[%clk 0:03:00]} 7. b4 {[%clk 0:02:59]}  e5 {[%clk 0:02:59]} 8. Bb2 {[%clk 0:02:58]}  e4 {[%clk 0:02:59]} 9. Nfd2 {[%clk 0:02:58]}  d5 {[%clk 0:03:00]} 10. c4 {[%clk 0:02:58]}  c6 {[%clk 0:03:00]} 11. b5 {[%clk 0:02:58]}  Re8 {[%clk 0:02:58]} 12. e3 {[%clk 0:02:58]}  Nf8 {[%clk 0:02:55]} 13. Nc3 {[%clk 0:02:57]}  Be6 {[%clk 0:02:51]} 14. a5 {[%clk 0:02:56]}  Rb8 {[%clk 0:02:47]} 15. Ba3 {[%clk 0:02:54]}  dxc4 {[%clk 0:02:35]} 16. bxc6 {[%clk 0:02:50]}  bxc6 {[%clk 0:02:28]} 17. Ncxe4 {[%clk 0:02:48]}  Nxe4 {[%clk 0:02:28]} 18. Nxe4 {[%clk 0:02:47]}  Bd5 {[%clk 0:02:28]} 19. Nd6 {[%clk 0:02:45]}  Re6 {[%clk 0:02:27]} 20. e4 {[%clk 0:02:40]}  Rxd6 {[%clk 0:02:20]} 21. Bxd6 {[%clk 0:02:39]}  Qxd6 {[%clk 0:02:21]} 22. exd5 {[%clk 0:02:39]}  cxd5 {[%clk 0:02:22]} 23. Qf3 {[%clk 0:02:38]}  Rd8 {[%clk 0:02:17]} 24. Rfd1 {[%clk 0:02:37]}  Ne6 {[%clk 0:02:17]} 25. Qe3 {[%clk 0:02:33]}  h5 {[%clk 0:02:09]} 26. Rab1 {[%clk 0:02:32]}  Rd7 {[%clk 0:02:05]} 27. Rb5 {[%clk 0:02:31]}  Qc6 {[%clk 0:01:52]} 28. Rb8+ {[%clk 0:02:23]}  Kh7 {[%clk 0:01:51]} 29. Qc3 {[%clk 0:02:14]}  Qa4 {[%clk 0:01:40]} 30. Bh3 {[%clk 0:02:12]}  Qxd1+ {[%clk 0:01:38]} 31. Kg2 {[%clk 0:02:12]}  Qxd4 {[%clk 0:01:33]} 32. Qb4 {[%clk 0:02:08]}  Qe4+ {[%clk 0:01:31]} 33. Kg1 {[%clk 0:02:08]}  c3 {[%clk 0:01:29]} 34. Rc8 {[%clk 0:02:06]}  Qxb4 {[%clk 0:01:29]} 0-1


[Site "https://www.chess.com"]

[Event "Early Titled Tuesday Blitz | February 8 2022"]
[White "Jobava, Baadur"]
[Black "Visakh N R"]
[WhiteFideId "13601520"]
[BlackFideId "25012223"]
[WhiteElo "2617"]
[BlackElo "2454"]
[Result "1-0"]
[Round "06"]
[TimeControl "180+1"]
[Date "2022.02.08"]
[WhiteClock "0:00:26"]
[BlackClock "0:00:21"]

1. e4 {[%clk 0:03:00]}  e5 {[%clk 0:02:57]} 2. Nf3 {[%clk 0:02:46]}  Nc6 {[%clk 0:02:57]} 3. Bc4 {[%clk 0:02:46]}  Nf6 {[%clk 0:02:55]} 4. d3 {[%clk 0:02:46]}  Bc5 {[%clk 0:02:55]} 5. c3 {[%clk 0:02:46]}  O-O {[%clk 0:02:55]} 6. b4 {[%clk 0:02:46]}  Bb6 {[%clk 0:02:54]} 7. a4 {[%clk 0:02:46]}  a6 {[%clk 0:02:51]} 8. O-O {[%clk 0:02:46]}  d6 {[%clk 0:02:52]} 9. Nbd2 {[%clk 0:02:44]}  h6 {[%clk 0:02:51]} 10. Bb3 {[%clk 0:02:44]}  Be6 {[%clk 0:02:49]} 11. Nc4 {[%clk 0:02:40]}  Ba7 {[%clk 0:02:37]} 12. Be3 {[%clk 0:02:39]}  Bxe3 {[%clk 0:02:31]} 13. Nxe3 {[%clk 0:02:40]}  Ne7 {[%clk 0:02:28]} 14. a5 {[%clk 0:02:38]}  Ng6 {[%clk 0:02:27]} 15. Re1 {[%clk 0:02:37]}  Re8 {[%clk 0:02:26]} 16. g3 {[%clk 0:02:38]}  d5 {[%clk 0:02:25]} 17. Bc2 {[%clk 0:02:08]}  c6 {[%clk 0:01:38]} 18. c4 {[%clk 0:01:52]}  dxe4 {[%clk 0:01:32]} 19. dxe4 {[%clk 0:01:52]}  Qxd1 {[%clk 0:01:30]} 20. Rexd1 {[%clk 0:01:51]}  Red8 {[%clk 0:01:31]} 21. Nd2 {[%clk 0:01:39]}  Rd7 {[%clk 0:01:19]} 22. Nb3 {[%clk 0:01:37]}  Rad8 {[%clk 0:01:18]} 23. Rxd7 {[%clk 0:01:36]}  Bxd7 {[%clk 0:01:19]} 24. Rd1 {[%clk 0:01:34]}  Re8 {[%clk 0:01:15]} 25. f3 {[%clk 0:01:27]}  Kf8 {[%clk 0:01:14]} 26. Kf2 {[%clk 0:01:27]}  Bc8 {[%clk 0:01:14]} 27. Nc5 {[%clk 0:01:24]}  Ne7 {[%clk 0:00:54]} 28. Ba4 {[%clk 0:01:20]}  Be6 {[%clk 0:00:45]} 29. Nxb7 {[%clk 0:01:14]}  Rb8 {[%clk 0:00:44]} 30. Rd8+ {[%clk 0:01:12]}  Rxd8 {[%clk 0:00:44]} 31. Nxd8 {[%clk 0:01:13]}  Bd7 {[%clk 0:00:42]} 32. Nb7 {[%clk 0:01:13]}  Ke8 {[%clk 0:00:42]} 33. Nc5 {[%clk 0:01:13]}  Bc8 {[%clk 0:00:43]} 34. Ke1 {[%clk 0:01:11]}  Kd8 {[%clk 0:00:43]} 35. Kd2 {[%clk 0:01:11]}  Nd7 {[%clk 0:00:43]} 36. Nd3 {[%clk 0:01:08]}  Kc7 {[%clk 0:00:43]} 37. Kc3 {[%clk 0:01:09]}  f6 {[%clk 0:00:42]} 38. Nc2 {[%clk 0:01:00]}  Nf8 {[%clk 0:00:39]} 39. Nc5 {[%clk 0:01:00]}  Ne6 {[%clk 0:00:38]} 40. Nxe6+ {[%clk 0:01:01]}  Bxe6 {[%clk 0:00:39]} 41. Ne1 {[%clk 0:01:01]}  Nc8 {[%clk 0:00:38]} 42. Nd3 {[%clk 0:01:01]}  Nd6 {[%clk 0:00:39]} 43. Bb3 {[%clk 0:01:01]}  Nb7 {[%clk 0:00:38]} 44. Ba4 {[%clk 0:00:52]}  Nd6 {[%clk 0:00:37]} 45. Bb3 {[%clk 0:00:52]}  Nb7 {[%clk 0:00:37]} 46. Bd1 {[%clk 0:00:49]}  Nd6 {[%clk 0:00:35]} 47. Nb2 {[%clk 0:00:50]}  f5 {[%clk 0:00:34]} 48. exf5 {[%clk 0:00:50]}  Nxf5 {[%clk 0:00:34]} 49. Nd3 {[%clk 0:00:49]}  Ne3 {[%clk 0:00:34]} 50. Bb3 {[%clk 0:00:48]}  Nf1 {[%clk 0:00:33]} 51. Nxe5 {[%clk 0:00:46]}  Nxh2 {[%clk 0:00:33]} 52. Bd1 {[%clk 0:00:35]}  h5 {[%clk 0:00:30]} 53. f4 {[%clk 0:00:33]}  Nf1 {[%clk 0:00:27]} 54. Bxh5 {[%clk 0:00:34]}  Nxg3 {[%clk 0:00:28]} 55. Bf3 {[%clk 0:00:34]}  Bd7 {[%clk 0:00:27]} 56. Nxd7 {[%clk 0:00:34]}  Kxd7 {[%clk 0:00:27]} 57. b5 {[%clk 0:00:35]}  cxb5 {[%clk 0:00:25]} 58. cxb5 {[%clk 0:00:36]}  Kc7 {[%clk 0:00:25]} 59. b6+ {[%clk 0:00:34]}  Kb8 {[%clk 0:00:25]} 60. Kd4 {[%clk 0:00:34]}  Nf5+ {[%clk 0:00:24]} 61. Ke5 {[%clk 0:00:34]}  Ne3 {[%clk 0:00:25]} 62. Be2 {[%clk 0:00:33]}  Kb7 {[%clk 0:00:25]} 63. Ke4 {[%clk 0:00:33]}  Nc2 {[%clk 0:00:25]} 64. Bc4 {[%clk 0:00:31]}  Nb4 {[%clk 0:00:24]} 65. Kf5 {[%clk 0:00:31]}  Kc6 {[%clk 0:00:22]} 66. Kg6 {[%clk 0:00:30]}  Kd6 {[%clk 0:00:23]} 67. Kxg7 {[%clk 0:00:29]}  Nc6 {[%clk 0:00:23]} 68. b7 {[%clk 0:00:29]}  Kc7 {[%clk 0:00:22]} 69. Bd5 {[%clk 0:00:28]}  Nb4 {[%clk 0:00:21]} 70. Be4 {[%clk 0:00:28]}  Na2 {[%clk 0:00:21]} 71. f5 {[%clk 0:00:28]}  Nc3 {[%clk 0:00:21]} 72. Bc6 {[%clk 0:00:26]} 1-0


[Site "https://www.chess.com"]

[Event "Early Titled Tuesday Blitz | February 8 2022"]
[White "Johnson, Ben"]
[Black "Qashashvili, Alexandre"]
[WhiteFideId "2010917"]
[BlackFideId "13600842"]
[WhiteElo "2158"]
[BlackElo "2316"]
[Result "0-1"]
[Round "06"]
[TimeControl "180+1"]
[Date "2022.02.08"]
[WhiteClock "0:00:20"]
[BlackClock "0:01:31"]

1. Nf3 {[%clk 0:03:00]}  c6 {[%clk 0:03:00]} 2. c4 {[%clk 0:02:58]}  d5 {[%clk 0:03:01]} 3. b3 {[%clk 0:02:55]}  Nf6 {[%clk 0:03:01]} 4. e3 {[%clk 0:02:53]}  Bf5 {[%clk 0:03:02]} 5. Bb2 {[%clk 0:02:52]}  e6 {[%clk 0:03:02]} 6. d4 {[%clk 0:02:46]}  Bb4+ {[%clk 0:03:01]} 7. Bc3 {[%clk 0:02:35]}  Bxc3+ {[%clk 0:02:58]} 8. Nxc3 {[%clk 0:02:35]}  O-O {[%clk 0:02:58]} 9. Bd3 {[%clk 0:02:17]}  Bxd3 {[%clk 0:02:58]} 10. Qxd3 {[%clk 0:02:17]}  Nbd7 {[%clk 0:02:58]} 11. O-O {[%clk 0:02:16]}  h6 {[%clk 0:02:57]} 12. e4 {[%clk 0:02:03]}  dxe4 {[%clk 0:02:57]} 13. Nxe4 {[%clk 0:02:02]}  Nxe4 {[%clk 0:02:58]} 14. Qxe4 {[%clk 0:02:03]}  Nf6 {[%clk 0:02:57]} 15. Qf4 {[%clk 0:02:01]}  Qb8 {[%clk 0:02:55]} 16. Qh4 {[%clk 0:01:59]}  Qd6 {[%clk 0:02:53]} 17. Rad1 {[%clk 0:01:53]}  Rad8 {[%clk 0:02:51]} 18. h3 {[%clk 0:01:47]}  Rfe8 {[%clk 0:02:42]} 19. Rde1 {[%clk 0:01:38]}  c5 {[%clk 0:02:40]} 20. dxc5 {[%clk 0:01:36]}  Qxc5 {[%clk 0:02:41]} 21. Re5 {[%clk 0:01:34]}  Qa3 {[%clk 0:02:36]} 22. Re2 {[%clk 0:01:28]}  Rd6 {[%clk 0:02:28]} 23. Rfe1 {[%clk 0:01:26]}  Red8 {[%clk 0:02:28]} 24. Qf4 {[%clk 0:01:20]}  a5 {[%clk 0:02:22]} 25. g4 {[%clk 0:01:12]}  a4 {[%clk 0:02:18]} 26. bxa4 {[%clk 0:01:10]}  Qxa4 {[%clk 0:02:11]} 27. h4 {[%clk 0:01:09]}  b5 {[%clk 0:02:08]} 28. g5 {[%clk 0:00:47]}  hxg5 {[%clk 0:02:06]} 29. hxg5 {[%clk 0:00:45]}  Nh5 {[%clk 0:02:05]} 30. Qh2 {[%clk 0:00:38]}  g6 {[%clk 0:02:03]} 31. cxb5 {[%clk 0:00:37]}  Qxb5 {[%clk 0:02:03]} 32. Ne5 {[%clk 0:00:35]}  Rd1 {[%clk 0:01:39]} 33. Qh4 {[%clk 0:00:20]}  Qxe2 {[%clk 0:01:31]} 0-1


[Site "https://www.chess.com"]

[Event "Early Titled Tuesday Blitz | February 8 2022"]
[White "Jumabayev, Rinat"]
[Black "Mirzoev, Azer"]
[WhiteFideId "13702661"]
[BlackFideId "13400304"]
[WhiteElo "2561"]
[BlackElo "2525"]
[Result "1-0"]
[Round "06"]
[TimeControl "180+1"]
[Date "2022.02.08"]
[WhiteClock "0:00:30"]
[BlackClock "0:00:06"]

1. d4 {[%clk 0:03:00]}  d5 {[%clk 0:02:59]} 2. Nf3 {[%clk 0:03:01]}  c6 {[%clk 0:02:58]} 3. Bf4 {[%clk 0:03:01]}  Qb6 {[%clk 0:02:57]} 4. Qc1 {[%clk 0:02:57]}  Nf6 {[%clk 0:02:56]} 5. e3 {[%clk 0:02:57]}  Bf5 {[%clk 0:02:55]} 6. c4 {[%clk 0:02:57]}  e6 {[%clk 0:02:54]} 7. Nc3 {[%clk 0:02:57]}  Nbd7 {[%clk 0:02:51]} 8. c5 {[%clk 0:02:57]}  Qa5 {[%clk 0:02:51]} 9. a3 {[%clk 0:02:54]}  Nh5 {[%clk 0:02:46]} 10. b4 {[%clk 0:02:52]}  Qd8 {[%clk 0:02:46]} 11. Bg5 {[%clk 0:02:52]}  f6 {[%clk 0:02:42]} 12. Bh4 {[%clk 0:02:51]}  g5 {[%clk 0:02:42]} 13. Bg3 {[%clk 0:02:51]}  Nxg3 {[%clk 0:02:41]} 14. hxg3 {[%clk 0:02:52]}  Bg7 {[%clk 0:02:38]} 15. Be2 {[%clk 0:02:50]}  O-O {[%clk 0:02:33]} 16. g4 {[%clk 0:02:41]}  Bg6 {[%clk 0:02:29]} 17. Bd1 {[%clk 0:02:32]}  f5 {[%clk 0:02:24]} 18. Bc2 {[%clk 0:02:28]}  Qf6 {[%clk 0:02:23]} 19. gxf5 {[%clk 0:02:20]}  exf5 {[%clk 0:02:23]} 20. Ne2 {[%clk 0:02:20]}  Rae8 {[%clk 0:02:18]} 21. Qd2 {[%clk 0:02:18]}  f4 {[%clk 0:02:00]} 22. exf4 {[%clk 0:02:12]}  Qxf4 {[%clk 0:01:50]} 23. Qxf4 {[%clk 0:02:03]}  Rxf4 {[%clk 0:01:47]} 24. Bxg6 {[%clk 0:02:03]}  hxg6 {[%clk 0:01:46]} 25. Kf1 {[%clk 0:02:03]}  Rf5 {[%clk 0:01:30]} 26. Rd1 {[%clk 0:01:56]}  Nf8 {[%clk 0:01:24]} 27. Ne1 {[%clk 0:01:28]}  g4 {[%clk 0:01:15]} 28. Rh4 {[%clk 0:01:25]}  Rg5 {[%clk 0:01:10]} 29. Nc2 {[%clk 0:01:17]}  Re4 {[%clk 0:00:56]} 30. Ng3 {[%clk 0:01:15]}  Rf4 {[%clk 0:00:55]} 31. Ne2 {[%clk 0:01:06]}  Re4 {[%clk 0:00:55]} 32. Nc3 {[%clk 0:01:05]}  Rf4 {[%clk 0:00:55]} 33. g3 {[%clk 0:01:03]}  Rf3 {[%clk 0:00:48]} 34. Ne3 {[%clk 0:01:03]}  Ne6 {[%clk 0:00:48]} 35. Ne2 {[%clk 0:01:03]}  Rh5 {[%clk 0:00:26]} 36. Rxg4 {[%clk 0:01:00]}  Rh1+ {[%clk 0:00:25]} 37. Ng1 {[%clk 0:00:58]}  Rf6 {[%clk 0:00:18]} 38. Kg2 {[%clk 0:00:57]}  Rh5 {[%clk 0:00:17]} 39. Nf3 {[%clk 0:00:54]}  Bh6 {[%clk 0:00:17]} 40. Nf1 {[%clk 0:00:49]}  Rhf5 {[%clk 0:00:15]} 41. N1h2 {[%clk 0:00:50]}  Kg7 {[%clk 0:00:15]} 42. Rd3 {[%clk 0:00:49]}  Ng5 {[%clk 0:00:13]} 43. Nxg5 {[%clk 0:00:39]}  Bxg5 {[%clk 0:00:13]} 44. f4 {[%clk 0:00:39]}  Bh6 {[%clk 0:00:13]} 45. Nf3 {[%clk 0:00:40]}  Rh5 {[%clk 0:00:11]} 46. Re3 {[%clk 0:00:35]}  Rf7 {[%clk 0:00:10]} 47. Re6 {[%clk 0:00:33]}  Kh7 {[%clk 0:00:09]} 48. Rgxg6 {[%clk 0:00:30]}  a5 {[%clk 0:00:06]} 49. g4 {[%clk 0:00:30]} 1-0


[Site "https://www.chess.com"]

[Event "Early Titled Tuesday Blitz | February 8 2022"]
[White "Karabalis, Harilos"]
[Black "Minina, Veronika"]
[WhiteFideId "4621808"]
[BlackFideId "4174780"]
[WhiteElo "2168"]
[BlackElo "1850"]
[Result "1-0"]
[Round "06"]
[TimeControl "180+1"]
[Date "2022.02.08"]
[WhiteClock "0:00:43"]
[BlackClock "0:00:03"]

1. e4 {[%clk 0:03:00]}  c5 {[%clk 0:02:56]} 2. a3 {[%clk 0:03:00]}  e6 {[%clk 0:02:45]} 3. Nf3 {[%clk 0:02:58]}  Nf6 {[%clk 0:02:45]} 4. e5 {[%clk 0:02:58]}  Nd5 {[%clk 0:02:44]} 5. c3 {[%clk 0:02:58]}  Nc6 {[%clk 0:02:35]} 6. d4 {[%clk 0:02:58]}  cxd4 {[%clk 0:02:29]} 7. cxd4 {[%clk 0:02:58]}  d6 {[%clk 0:02:30]} 8. Bc4 {[%clk 0:02:55]}  Be7 {[%clk 0:02:08]} 9. O-O {[%clk 0:02:54]}  Nb6 {[%clk 0:02:04]} 10. Bb5 {[%clk 0:02:51]}  O-O {[%clk 0:02:02]} 11. exd6 {[%clk 0:02:50]}  Qxd6 {[%clk 0:02:00]} 12. Nc3 {[%clk 0:02:49]}  a6 {[%clk 0:01:55]} 13. Bd3 {[%clk 0:02:47]}  Kh8 {[%clk 0:01:47]} 14. Bc2 {[%clk 0:02:35]}  Bf6 {[%clk 0:01:45]} 15. Be3 {[%clk 0:02:33]}  Nd5 {[%clk 0:01:41]} 16. Ne4 {[%clk 0:02:33]}  Qe7 {[%clk 0:01:26]} 17. Nxf6 {[%clk 0:02:32]}  Qxf6 {[%clk 0:01:27]} 18. Qd3 {[%clk 0:02:31]}  Qg6 {[%clk 0:01:18]} 19. Qe2 {[%clk 0:02:30]}  Qh5 {[%clk 0:01:14]} 20. Bd2 {[%clk 0:02:22]}  Qg4 {[%clk 0:01:06]} 21. Qd3 {[%clk 0:02:12]}  Qg6 {[%clk 0:00:49]} 22. Qb3 {[%clk 0:02:06]}  Qg4 {[%clk 0:00:42]} 23. Rad1 {[%clk 0:01:49]}  Bd7 {[%clk 0:00:31]} 24. h3 {[%clk 0:01:46]}  Qh5 {[%clk 0:00:27]} 25. Qxb7 {[%clk 0:01:38]}  Rfd8 {[%clk 0:00:27]} 26. Qb3 {[%clk 0:01:28]}  Rab8 {[%clk 0:00:24]} 27. Qa2 {[%clk 0:01:28]}  Rdc8 {[%clk 0:00:19]} 28. Be4 {[%clk 0:01:24]}  Nce7 {[%clk 0:00:19]} 29. Rc1 {[%clk 0:01:21]}  Bb5 {[%clk 0:00:18]} 30. Rfe1 {[%clk 0:01:20]}  Rxc1 {[%clk 0:00:13]} 31. Rxc1 {[%clk 0:01:19]}  Nf6 {[%clk 0:00:12]} 32. Bb1 {[%clk 0:01:11]}  Ned5 {[%clk 0:00:13]} 33. b4 {[%clk 0:01:10]}  Ba4 {[%clk 0:00:11]} 34. Rc5 {[%clk 0:01:09]}  Bb5 {[%clk 0:00:10]} 35. Qc2 {[%clk 0:01:08]}  Rd8 {[%clk 0:00:11]} 36. Bg5 {[%clk 0:01:04]}  Rg8 {[%clk 0:00:09]} 37. Qd2 {[%clk 0:00:52]}  Ba4 {[%clk 0:00:07]} 38. Ne5 {[%clk 0:00:45]}  Bb5 {[%clk 0:00:05]} 39. g4 {[%clk 0:00:43]}  Nxg4 {[%clk 0:00:03]} 40. hxg4 {[%clk 0:00:43]} 1-0


[Site "https://www.chess.com"]

[Event "Early Titled Tuesday Blitz | February 8 2022"]
[White "Kazarian, Anna-Maja"]
[Black "Bettalli, Francesco"]
[WhiteFideId "1033689"]
[BlackFideId "2816453"]
[WhiteElo "2004"]
[BlackElo "2216"]
[Result "1/2-1/2"]
[Round "06"]
[TimeControl "180+1"]
[Date "2022.02.08"]
[WhiteClock "0:00:05"]
[BlackClock "0:00:29"]

1. e4 {[%clk 0:03:00]}  e5 {[%clk 0:03:00]} 2. Nf3 {[%clk 0:03:00]}  Nf6 {[%clk 0:03:00]} 3. Nxe5 {[%clk 0:02:57]}  Nc6 {[%clk 0:03:01]} 4. Nxc6 {[%clk 0:02:57]}  dxc6 {[%clk 0:03:01]} 5. d3 {[%clk 0:02:54]}  Bc5 {[%clk 0:03:02]} 6. h3 {[%clk 0:02:51]}  h5 {[%clk 0:02:58]} 7. Nc3 {[%clk 0:02:39]}  Be6 {[%clk 0:02:51]} 8. Be2 {[%clk 0:02:26]}  Qd6 {[%clk 0:02:47]} 9. Bg5 {[%clk 0:02:20]}  O-O-O {[%clk 0:02:46]} 10. Qd2 {[%clk 0:02:11]}  Kb8 {[%clk 0:02:29]} 11. O-O-O {[%clk 0:01:59]}  Bxf2 {[%clk 0:02:28]} 12. Rhf1 {[%clk 0:01:56]}  Bd4 {[%clk 0:02:28]} 13. Kb1 {[%clk 0:01:44]}  Qb4 {[%clk 0:02:20]} 14. a3 {[%clk 0:01:37]}  Qa5 {[%clk 0:02:20]} 15. Be3 {[%clk 0:01:27]}  c5 {[%clk 0:02:12]} 16. Bxd4 {[%clk 0:01:18]}  cxd4 {[%clk 0:02:13]} 17. Na2 {[%clk 0:01:18]}  Qxd2 {[%clk 0:02:09]} 18. Rxd2 {[%clk 0:01:17]}  Rh6 {[%clk 0:02:09]} 19. c3 {[%clk 0:00:56]}  Bxa2+ {[%clk 0:02:06]} 20. Kxa2 {[%clk 0:00:55]}  dxc3 {[%clk 0:02:06]} 21. bxc3 {[%clk 0:00:56]}  Nxe4 {[%clk 0:02:07]} 22. Rc2 {[%clk 0:00:52]}  Nf6 {[%clk 0:02:07]} 23. d4 {[%clk 0:00:45]}  Rg6 {[%clk 0:02:05]} 24. Bf3 {[%clk 0:00:43]}  Rg3 {[%clk 0:02:02]} 25. Rb1 {[%clk 0:00:38]}  b6 {[%clk 0:02:00]} 26. a4 {[%clk 0:00:36]}  Nd5 {[%clk 0:01:59]} 27. a5 {[%clk 0:00:33]}  Ne3 {[%clk 0:01:56]} 28. Re2 {[%clk 0:00:29]}  Nc4 {[%clk 0:01:56]} 29. axb6 {[%clk 0:00:28]}  axb6 {[%clk 0:01:56]} 30. Kb3 {[%clk 0:00:25]}  Na5+ {[%clk 0:01:54]} 31. Kc2 {[%clk 0:00:24]}  h4 {[%clk 0:01:41]} 32. Re7 {[%clk 0:00:21]}  f5 {[%clk 0:01:41]} 33. Rf7 {[%clk 0:00:19]}  g6 {[%clk 0:01:37]} 34. Rh7 {[%clk 0:00:18]}  g5 {[%clk 0:01:36]} 35. Re7 {[%clk 0:00:18]}  g4 {[%clk 0:01:34]} 36. hxg4 {[%clk 0:00:16]}  fxg4 {[%clk 0:01:35]} 37. Be4 {[%clk 0:00:16]}  h3 {[%clk 0:01:33]} 38. gxh3 {[%clk 0:00:16]}  gxh3 {[%clk 0:01:34]} 39. Re5 {[%clk 0:00:16]}  Nb7 {[%clk 0:01:08]} 40. Rh5 {[%clk 0:00:14]}  Rf8 {[%clk 0:01:08]} 41. Ra1 {[%clk 0:00:13]}  Re3 {[%clk 0:01:04]} 42. Bd5 {[%clk 0:00:13]}  Rd8 {[%clk 0:00:58]} 43. Kb3 {[%clk 0:00:12]}  Rg3 {[%clk 0:00:49]} 44. Bc6 {[%clk 0:00:12]}  Rf8 {[%clk 0:00:40]} 45. Kc4 {[%clk 0:00:12]}  Nd6+ {[%clk 0:00:37]} 46. Kd5 {[%clk 0:00:12]}  Nb7 {[%clk 0:00:35]} 47. Kc4 {[%clk 0:00:11]}  Rg6 {[%clk 0:00:32]} 48. Bd5 {[%clk 0:00:08]}  Rd6 {[%clk 0:00:27]} 49. Bxb7 {[%clk 0:00:07]}  Kxb7 {[%clk 0:00:26]} 50. Rxh3 {[%clk 0:00:08]}  Rc6+ {[%clk 0:00:27]} 51. Kb3 {[%clk 0:00:08]}  Rf4 {[%clk 0:00:26]} 52. Rd3 {[%clk 0:00:08]}  Re6 {[%clk 0:00:27]} 53. d5 {[%clk 0:00:08]}  Rd6 {[%clk 0:00:27]} 54. c4 {[%clk 0:00:07]}  c6 {[%clk 0:00:27]} 55. dxc6+ {[%clk 0:00:07]}  Kxc6 {[%clk 0:00:27]} 56. Rxd6+ {[%clk 0:00:08]}  Kxd6 {[%clk 0:00:28]} 57. Kb4 {[%clk 0:00:06]}  Kc6 {[%clk 0:00:29]} 58. Rh1 {[%clk 0:00:06]}  Rf6 {[%clk 0:00:29]} 59. Rh5 {[%clk 0:00:06]}  Rd6 {[%clk 0:00:30]} 60. Rg5 {[%clk 0:00:05]}  Re6 {[%clk 0:00:30]} 61. Rh5 {[%clk 0:00:06]}  Rf6 {[%clk 0:00:30]} 62. Rg5 {[%clk 0:00:06]}  Rh6 {[%clk 0:00:31]} 63. Rf5 {[%clk 0:00:06]}  Kb7 {[%clk 0:00:32]} 64. Kb5 {[%clk 0:00:06]}  Rc6 {[%clk 0:00:30]} 65. Rf7+ {[%clk 0:00:05]}  Rc7 {[%clk 0:00:30]} 66. Rf6 {[%clk 0:00:04]}  Rc5+ {[%clk 0:00:30]} 67. Kb4 {[%clk 0:00:05]}  Ka6 {[%clk 0:00:30]} 68. Rf8 {[%clk 0:00:04]}  Rc7 {[%clk 0:00:31]} 69. Rf6 {[%clk 0:00:04]}  Kb7 {[%clk 0:00:32]} 70. Kb5 {[%clk 0:00:04]}  Rc5+ {[%clk 0:00:32]} 71. Kb4 {[%clk 0:00:05]}  Kc7 {[%clk 0:00:33]} 72. Rf7+ {[%clk 0:00:04]}  Kc6 {[%clk 0:00:34]} 73. Rf6+ {[%clk 0:00:05]}  Kb7 {[%clk 0:00:34]} 74. Rf7+ {[%clk 0:00:05]}  Ka6 {[%clk 0:00:35]} 75. Rf6 {[%clk 0:00:06]}  Rc8 {[%clk 0:00:35]} 76. Re6 {[%clk 0:00:05]}  Rd8 {[%clk 0:00:35]} 77. Rf6 {[%clk 0:00:06]}  Rd1 {[%clk 0:00:36]} 78. c5 {[%clk 0:00:03]}  Rb1+ {[%clk 0:00:36]} 79. Ka3 {[%clk 0:00:04]}  Rb5 {[%clk 0:00:28]} 80. Rxb6+ {[%clk 0:00:04]}  Rxb6 {[%clk 0:00:28]} 81. cxb6 {[%clk 0:00:05]}  Kxb6 {[%clk 0:00:29]} 1/2-1/2


[Site "https://www.chess.com"]

[Event "Early Titled Tuesday Blitz | February 8 2022"]
[White "Kett, Tim"]
[Black "Zavgorodniy, Sergiy"]
[WhiteFideId "1801210"]
[BlackFideId "14110148"]
[WhiteElo "2098"]
[BlackElo "2420"]
[Result "1/2-1/2"]
[Round "06"]
[TimeControl "180+1"]
[Date "2022.02.08"]
[WhiteClock "0:00:09"]
[BlackClock "0:00:09"]

1. e4 {[%clk 0:03:00]}  c5 {[%clk 0:02:55]} 2. Nf3 {[%clk 0:03:01]}  d6 {[%clk 0:02:52]} 3. d4 {[%clk 0:03:01]}  cxd4 {[%clk 0:02:52]} 4. Nxd4 {[%clk 0:03:02]}  Nf6 {[%clk 0:02:52]} 5. Nc3 {[%clk 0:03:02]}  g6 {[%clk 0:02:53]} 6. Be3 {[%clk 0:03:02]}  Bg7 {[%clk 0:02:53]} 7. f3 {[%clk 0:03:02]}  a6 {[%clk 0:02:52]} 8. Qd2 {[%clk 0:03:01]}  h5 {[%clk 0:02:52]} 9. O-O-O {[%clk 0:03:00]}  b5 {[%clk 0:02:52]} 10. Kb1 {[%clk 0:03:00]}  Nbd7 {[%clk 0:02:50]} 11. Bd3 {[%clk 0:02:51]}  Bb7 {[%clk 0:02:49]} 12. Rhe1 {[%clk 0:02:50]}  Rc8 {[%clk 0:02:48]} 13. f4 {[%clk 0:02:46]}  b4 {[%clk 0:02:43]} 14. Nd5 {[%clk 0:02:45]}  Bxd5 {[%clk 0:02:25]} 15. exd5 {[%clk 0:02:43]}  Nxd5 {[%clk 0:02:24]} 16. f5 {[%clk 0:02:21]}  g5 {[%clk 0:02:05]} 17. Bxa6 {[%clk 0:02:09]}  Nxe3 {[%clk 0:02:00]} 18. Qxe3 {[%clk 0:02:00]}  Rc5 {[%clk 0:01:47]} 19. Qxg5 {[%clk 0:01:46]}  Bf6 {[%clk 0:01:43]} 20. Qg3 {[%clk 0:01:35]}  Kf8 {[%clk 0:01:40]} 21. Be2 {[%clk 0:01:05]}  Qb6 {[%clk 0:01:31]} 22. Bf3 {[%clk 0:01:03]}  Ne5 {[%clk 0:01:28]} 23. Nb3 {[%clk 0:01:00]}  Rc7 {[%clk 0:01:24]} 24. Bd5 {[%clk 0:00:57]}  Nc4 {[%clk 0:01:07]} 25. Bxc4 {[%clk 0:00:53]}  Rxc4 {[%clk 0:01:08]} 26. Nd2 {[%clk 0:00:51]}  Rg4 {[%clk 0:01:05]} 27. Qf3 {[%clk 0:00:49]}  Qd4 {[%clk 0:00:50]} 28. Qb3 {[%clk 0:00:43]}  h4 {[%clk 0:00:42]} 29. Nf3 {[%clk 0:00:41]}  Qc4 {[%clk 0:00:41]} 30. Qxc4 {[%clk 0:00:36]}  Rxc4 {[%clk 0:00:41]} 31. Nd2 {[%clk 0:00:36]}  Rg4 {[%clk 0:00:33]} 32. Ne4 {[%clk 0:00:36]}  Rxg2 {[%clk 0:00:32]} 33. Nxf6 {[%clk 0:00:36]}  exf6 {[%clk 0:00:31]} 34. Rxd6 {[%clk 0:00:36]}  Rxh2 {[%clk 0:00:28]} 35. Rd8+ {[%clk 0:00:36]}  Kg7 {[%clk 0:00:28]} 36. Rg1+ {[%clk 0:00:37]}  Kh7 {[%clk 0:00:28]} 37. Rd7 {[%clk 0:00:34]}  Rf8 {[%clk 0:00:26]} 38. a4 {[%clk 0:00:31]}  bxa3 {[%clk 0:00:22]} 39. bxa3 {[%clk 0:00:32]}  Kh6 {[%clk 0:00:19]} 40. Rd6 {[%clk 0:00:30]}  Kh5 {[%clk 0:00:17]} 41. Rxf6 {[%clk 0:00:28]}  h3 {[%clk 0:00:17]} 42. Rd6 {[%clk 0:00:23]}  Rg2 {[%clk 0:00:17]} 43. Rh1 {[%clk 0:00:19]}  h2 {[%clk 0:00:17]} 44. Rdd1 {[%clk 0:00:19]}  Rfg8 {[%clk 0:00:15]} 45. Kb2 {[%clk 0:00:14]}  Kh4 {[%clk 0:00:15]} 46. a4 {[%clk 0:00:13]}  Kh3 {[%clk 0:00:15]} 47. Rd3+ {[%clk 0:00:12]}  R8g3 {[%clk 0:00:13]} 48. Rd8 {[%clk 0:00:11]}  Rg8 {[%clk 0:00:12]} 49. Rd3+ {[%clk 0:00:10]}  R2g3 {[%clk 0:00:09]} 50. Rd2 {[%clk 0:00:09]}  Rg2 {[%clk 0:00:09]} 51. Rd3+ {[%clk 0:00:09]} 1/2-1/2


[Site "https://www.chess.com"]